bitfinex/quotes_BTCUSD_20250916
["timestamp","ask_amount","ask_price","bid_price","bid_amount"]
[1757998857407,0.9279941,115680.0,115670.0,0.11041352]
[1757998857607,0.9279941,115680.0,115670.0,0.08752352]
[1757998858161,1.28056825,115680.0,115670.0,0.08752352]
[1757998859008,1.42436825,115680.0,115670.0,0.08752352]
[1757998859249,1.4233483,115680.0,115670.0,0.08752352]
[1757998860461,1.42304304,115680.0,115670.0,0.08752352]
[1757998861386,1.27924304,115680.0,115670.0,0.08752352]
[1757998861537,1.42304304,115680.0,115670.0,0.08752352]
[1757998861892,1.03151495,115680.0,115670.0,0.08752352]
[1757998866167,1.03146493,115680.0,115670.0,0.08752352]
[1757998868174,0.88766493,115680.0,115670.0,0.08752352]
[1757998868429,1.03117072,115680.0,115670.0,0.08752352]
[1757998868848,0.71755051,115680.0,115670.0,0.08752352]
[1757998868984,1.03117072,115680.0,115670.0,0.08752352]
[1757998870022,1.03106965,115680.0,115670.0,0.08752352]
[1757998872751,1.02851823,115680.0,115670.0,0.08752352]
[1757998873369,1.34213844,115680.0,115670.0,0.08752352]
[1757998873650,0.51292062,115660.0,115650.0,0.16675]
[1757998873859,0.82654083,115660.0,115650.0,0.25427352]
[1757998874044,0.82654083,115660.0,115650.0,0.25629352]
[1757998874308,0.85253717,115660.0,115650.0,0.25629352]
[1757998874796,0.85784717,115660.0,115650.0,0.25629352]
[1757998874996,0.85784717,115660.0,115650.0,0.25729352]
[1757998876456,0.88046056,115660.0,115650.0,0.25729352]
[1757998876657,0.88046056,115660.0,115650.0,0.25527352]
[1757998877480,0.88046056,115660.0,115650.0,0.11147352]
[1757998877697,0.88046056,115660.0,115650.0,0.23232352]
[1757998878121,0.88056056,115660.0,115650.0,0.23232352]
[1757998878543,0.88040842,115660.0,115650.0,0.23232352]
[1757998880674,0.88040842,115660.0,115650.0,0.25517352]
[1757998880856,0.88040842,115660.0,115650.0,0.25719352]
[1757998881768,0.88035329,115660.0,115650.0,0.25719352]
[1757998884013,0.36609634,115660.0,115650.0,0.4301291]
[1757998884230,0.36609634,115660.0,115650.0,0.4331491]
[1757998884442,0.36599634,115660.0,115650.0,0.4331491]
[1757998884648,0.02599634,115660.0,115650.0,0.45827568]
[1757998885308,0.34,115670.0,115660.0,0.17292062]
[1757998885565,0.00862035,115680.0,115670.0,0.17290567]
[1757998885772,0.03461095,115680.0,115670.0,0.43215919]
[1757998886610,0.00852035,115680.0,115670.0,0.49863919]
[1757998886844,0.00750022,115680.0,115670.0,0.49863919]
[1757998887074,0.67960858,115690.0,115680.0,0.17289073]
[1757998887298,0.67960858,115690.0,115680.0,0.26243425]
[1757998887517,0.67960858,115690.0,115680.0,0.28830425]
[1757998888214,0.36598837,115690.0,115680.0,0.28930425]
[1757998888452,0.36598837,115690.0,115680.0,0.28830425]
[1757998888933,0.36598837,115690.0,115680.0,0.68830425]
[1757998889146,0.36598837,115690.0,115680.0,0.68840425]
[1757998889567,0.67960858,115690.0,115680.0,0.68840425]
[1757998889981,0.67960858,115690.0,115680.0,0.48862352]
[1757998889982,0.7182791,115690.0,115680.0,0.48862352]
[1757998890210,0.7182791,115690.0,115680.0,0.80531425]
[1757998890630,0.7182791,115690.0,115680.0,0.40731425]
[1757998890791,0.37482889,115690.0,115680.0,0.43250425]
[1757998890975,0.6884491,115690.0,115680.0,0.43250425]
[1757998892330,0.03482889,115690.0,115680.0,0.43250425]
[1757998892558,0.03482889,115690.0,115680.0,0.28870425]
[1757998892559,0.37482889,115690.0,115680.0,0.28870425]
[1757998892802,0.37482889,115690.0,115680.0,0.43250425]
[1757998893427,0.6884491,115690.0,115680.0,0.43350425]
[1757998893602,0.6884491,115690.0,115680.0,0.43550425]
[1757998894673,0.6884491,115690.0,115680.0,0.83550425]
[1757998895107,0.37482889,115690.0,115680.0,0.83550425]
[1757998895417,0.6884491,115690.0,115680.0,0.83550425]
[1757998896469,0.37482889,115690.0,115680.0,0.83550425]
[1757998900777,0.37482889,115690.0,115680.0,0.69170425]
[1757998901231,0.37482889,115690.0,115680.0,0.83546425]
[1757998901456,0.37482889,115690.0,115680.0,0.83550425]
[1757998901703,0.6884491,115690.0,115680.0,0.83550425]
[1757998902285,0.6884491,115690.0,115680.0,0.83236425]
[1757998904744,0.6884491,115690.0,115680.0,0.68856425]
[1757998904877,0.6884491,115690.0,115680.0,0.83236425]
[1757998905559,0.7182791,115690.0,115680.0,0.80731425]
[1757998905894,0.7182791,115690.0,115680.0,0.66351425]
[1757998906090,0.7182791,115690.0,115680.0,0.80731425]
[1757998908352,0.7182791,115690.0,115680.0,0.83236425]
[1757998908554,0.6884491,115690.0,115680.0,0.83236425]
[1757998909332,0.6905491,115690.0,115680.0,0.83236425]
[1757998909533,0.6937191,115690.0,115680.0,0.83236425]
[1757998909746,0.7182791,115690.0,115680.0,0.83236425]
[1757998911269,0.6884491,115690.0,115680.0,0.83236425]
[1757998911705,0.37482889,115690.0,115680.0,0.83236425]
[1757998911911,0.6884491,115690.0,115680.0,0.83236425]
[1757998912314,0.6916191,115690.0,115680.0,0.83236425]
[1757998912555,0.6937191,115690.0,115680.0,0.83236425]
[1757998913192,0.69358799,115690.0,115680.0,0.83236425]
[1757998913376,0.66773073,115690.0,115680.0,0.83236425]
[1757998914858,0.69229073,115690.0,115680.0,0.83236425]
[1757998916156,0.66246073,115690.0,115680.0,0.83236425]
[1757998921102,0.66446073,115690.0,115680.0,0.83228425]
[1757998921307,0.69088073,115690.0,115680.0,0.83228425]
[1757998923931,1.08274446,115690.0,115680.0,0.83228425]
[1757998925284,1.08274446,115690.0,115680.0,0.68856425]
[1757998925509,1.08274446,115690.0,115680.0,0.83224425]
[1757998945405,1.08274446,115690.0,115680.0,0.80719425]
[1757998946255,1.08274446,115690.0,115680.0,0.82996425]
[1757998948847,1.08274446,115690.0,115680.0,0.66351425]
[1757998949050,1.08274446,115690.0,115680.0,0.80719425]
[1757998949697,1.08274446,115690.0,115680.0,0.09062352]
[1757998949698,1.25562024,115690.0,115680.0,0.09062352]
[1757998949902,1.25562024,115690.0,115680.0,0.23430352]
[1757998950588,1.25562024,115690.0,115680.0,0.09062352]
[1757998950793,1.28371732,115690.0,115680.0,0.08952352]
[1757998950996,1.28371732,115690.0,115680.0,0.23120352]
[1757998951183,1.28171185,115690.0,115680.0,0.23120352]
[1757998951574,1.42539185,115690.0,115680.0,0.08852352]
[1757998951791,0.17289073,115680.0,115670.0,0.0001]
[1757998952022,0.51290567,115670.0,115660.0,0.0001]
[1757998952227,1.24763961,115670.0,115660.0,0.14372]
[1757998952697,1.27363417,115670.0,115660.0,0.23124352]
[1757998952905,1.27373417,115670.0,115660.0,0.23124352]
[1757998953520,0.9209922,115670.0,115660.0,0.23124352]
[1757998954072,0.56825023,115670.0,115660.0,0.23124352]
[1757998954287,0.9209922,115670.0,115660.0,0.23124352]
[1757998954506,0.9209922,115670.0,115660.0,0.08852352]
[1757998954743,0.9209922,115670.0,115660.0,0.23224352]
[1757998959053,0.8699486,115670.0,115660.0,0.23224352]
[1757998961881,0.69704293,115670.0,115660.0,0.23224352]
[1757998962111,0.69704293,115670.0,115660.0,0.43413414]
[1757998962112,0.64179837,115670.0,115660.0,0.43413414]
[1757998962531,0.2890564,115670.0,115660.0,0.43413414]
[1757998962735,0.3401,115680.0,115670.0,0.17290567]
[1757998962936,1.07157589,115680.0,115670.0,0.28623919]
[1757998963144,1.04558394,115680.0,115670.0,0.28623919]
[1757998965050,0.69284197,115680.0,115670.0,0.28623919]
[1757998965458,1.04558394,115680.0,115670.0,0.28623919]
[1757998965857,1.04558394,115680.0,115670.0,0.28723919]
[1757998967207,1.05092394,115680.0,115670.0,0.28723919]
[1757998967833,1.07483394,115680.0,115670.0,0.28723919]
[1757998969051,1.07483394,115680.0,115670.0,0.11433352]
[1757998969477,1.07483394,115680.0,115670.0,0.11235352]
[1757998971465,1.07483394,115680.0,115670.0,0.28723919]
[1757998971654,1.05092394,115680.0,115670.0,0.28723919]
[1757998973778,1.10082432,115680.0,115670.0,0.28723919]
[1757998975410,1.07157432,115680.0,115670.0,0.28723919]
[1757998976627,0.35274197,115680.0,115670.0,0.31530577]
[1757998977133,0.70548394,115680.0,115670.0,0.71530577]
[1757998979431,0.70548394,115680.0,115670.0,0.71540577]
[1757998980090,0.70548394,115680.0,115670.0,0.31540577]
[1757998980519,0.70548394,115680.0,115670.0,0.71540577]
[1757998981570,0.70548394,115680.0,115670.0,0.78188577]
[1757998982219,0.35274197,115680.0,115670.0,0.78188577]
[1757998983460,0.35274197,115680.0,115670.0,0.78288577]
[1757998983689,0.35274197,115680.0,115670.0,0.38288577]
[1757998983901,0.00884052,115690.0,115680.0,0.17289073]
[1757998984108,0.00884052,115690.0,115680.0,0.40409425]
[1757998984309,0.39420663,115700.0,115690.0,0.17287578]
[1757998984537,0.39615663,115700.0,115690.0,0.2603993]
[1757998984799,0.39615663,115700.0,115690.0,0.08752352]
[1757998985016,0.39615663,115700.0,115690.0,0.4040793]
[1757998985227,0.70964717,115700.0,115690.0,0.4040793]
[1757998985844,0.70964717,115700.0,115690.0,0.4050793]
[1757998986257,0.70964717,115700.0,115690.0,0.4060793]
[1757998986386,0.39615663,115700.0,115690.0,0.4312893]
[1757998986604,0.70964717,115700.0,115690.0,0.4293393]
[1757998986811,0.70964717,115700.0,115690.0,0.4060793]
[1757998987752,0.71848076,115700.0,115690.0,0.4060793]
[1757998987950,0.71848076,115700.0,115690.0,0.08952352]
[1757998988156,0.71848076,115700.0,115690.0,0.23320352]
[1757998988744,0.71848076,115700.0,115690.0,0.08952352]
[1757998988908,0.8913416,115700.0,115690.0,0.08952352]
[1757998989109,0.8913416,115700.0,115690.0,0.23340352]
[1757998992113,1.20483214,115700.0,115690.0,0.23336352]
[1757998992433,1.20483214,115700.0,115690.0,0.08952352]
[1757998992593,1.23282922,115700.0,115690.0,0.23336352]
[1757998993218,1.23282922,115700.0,115690.0,0.23236352]
[1757998993420,1.23282922,115700.0,115690.0,0.08852352]
[1757998993631,1.37670922,115700.0,115690.0,0.08852352]
[1757998994242,1.37670922,115700.0,115690.0,0.08752352]
[1757998998001,1.23282922,115700.0,115690.0,0.08752352]
[1757998998212,1.34871214,115700.0,115690.0,0.08752352]
[1757999002779,1.20483214,115700.0,115690.0,0.08752352]
[1757999010910,0.8913416,115700.0,115690.0,0.08752352]
[1757999011360,0.8913416,115700.0,115690.0,0.11174352]
[1757999011924,0.8913416,115700.0,115690.0,0.08752352]
[1757999013099,0.8913416,115700.0,115690.0,0.11387352]
[1757999014791,0.8913416,115700.0,115690.0,0.08752352]
[1757999016528,0.03492022,115700.0,115690.0,0.30722687]
[1757999016770,0.32242413,115700.0,115690.0,0.2899393]
[1757999017002,0.66242413,115700.0,115690.0,0.2899393]
[1757999018357,0.32232413,115700.0,115690.0,0.2899393]
[1757999018870,0.32232413,115700.0,115690.0,0.2919393]
[1757999019235,0.32232413,115700.0,115690.0,0.2929393]
[1757999019444,0.32232413,115700.0,115690.0,0.2930393]
[1757999020830,0.32232413,115700.0,115690.0,0.4368793]
[1757999021265,0.32232413,115700.0,115690.0,0.2930393]
[1757999021438,0.32232413,115700.0,115690.0,0.4368793]
[1757999022690,0.32232413,115700.0,115690.0,0.46200588]
[1757999022923,0.0001,115720.0,115710.0,0.1728459]
[1757999023080,0.96708108,115720.0,115710.0,0.43055942]
[1757999023482,0.96708108,115720.0,115710.0,0.43051942]
[1757999025868,0.65359054,115720.0,115710.0,0.43370942]
[1757999026095,0.65349054,115720.0,115710.0,0.43370942]
[1757999027060,0.65349054,115720.0,115710.0,0.28671942]
[1757999027555,0.97565119,115720.0,115710.0,0.43057942]
[1757999028450,0.97565119,115720.0,115710.0,0.43157942]
[1757999028734,0.66216065,115720.0,115710.0,0.43357942]
[1757999028952,0.32216065,115720.0,115710.0,0.43676942]
[1757999030323,0.32216065,115720.0,115710.0,0.43357942]
[1757999031865,0.32216065,115720.0,115710.0,0.28981942]
[1757999032057,0.32216065,115720.0,115710.0,0.43357942]
[1757999032270,0.32216065,115720.0,115710.0,0.68981942]
[1757999032691,0.32216065,115720.0,115710.0,0.83353942]
[1757999032895,0.32216065,115720.0,115710.0,0.68981942]
[1757999033112,0.32216065,115720.0,115710.0,0.83353942]
[1757999034488,0.32216065,115720.0,115710.0,0.68981942]
[1757999035450,0.32216065,115720.0,115710.0,0.83353942]
[1757999036054,0.32216065,115720.0,115710.0,0.68981942]
[1757999036257,0.32216065,115720.0,115710.0,0.83353942]
[1757999040347,0.32216065,115720.0,115710.0,0.718116]
[1757999040576,0.32216065,115720.0,115710.0,0.861796]
[1757999041190,0.32216065,115720.0,115710.0,0.718116]
[1757999041369,0.32216065,115720.0,115710.0,0.861796]
[1757999041603,0.32216065,115720.0,115710.0,0.718116]
[1757999041792,0.32216065,115720.0,115710.0,0.861796]
[1757999044394,0.32216065,115720.0,115710.0,0.718116]
[1757999044782,0.32216065,115720.0,115710.0,0.861796]
[1757999045183,0.32216065,115720.0,115710.0,0.858626]
[1757999045900,0.36116223,115720.0,115710.0,0.858626]
[1757999046293,0.36116223,115720.0,115710.0,0.714946]
[1757999046509,0.36116223,115720.0,115710.0,0.858626]
[1757999047188,0.00867011,115720.0,115710.0,0.718116]
[1757999047407,0.36116223,115720.0,115710.0,0.861756]
[1757999047624,0.35249212,115720.0,115710.0,0.861756]
[1757999049365,0.00853665,115730.0,115720.0,0.17283097]
[1757999049606,0.36102877,115730.0,115720.0,0.40403449]
[1757999049805,0.35249212,115730.0,115720.0,0.43211449]
[1757999050014,0.35249212,115730.0,115720.0,0.28843449]
[1757999050219,0.35249212,115730.0,115720.0,0.42894449]
[1757999050815,0.35249212,115730.0,115720.0,0.82894449]
[1757999051010,0.35249212,115730.0,115720.0,0.82904449]
[1757999051221,0.35249212,115730.0,115720.0,0.68536449]
[1757999051426,0.35249212,115730.0,115720.0,0.82904449]
[1757999051622,0.36131145,115730.0,115720.0,0.82904449]
[1757999052726,0.36131145,115730.0,115720.0,0.83004449]
[1757999052929,0.36131145,115730.0,115720.0,0.83204449]
[1757999055166,0.00881933,115730.0,115720.0,0.86034107]
[1757999055396,0.35249212,115730.0,115720.0,0.86034107]
[1757999055596,0.3612204,115730.0,115720.0,0.86034107]
[1757999055807,0.3612204,115730.0,115720.0,0.71666107]
[1757999056034,0.3612204,115730.0,115720.0,0.86046107]
[1757999057716,0.3612204,115730.0,115720.0,0.71666107]
[1757999057932,0.3612204,115730.0,115720.0,0.86046107]
[1757999065416,0.3612204,115730.0,115720.0,0.71666107]
[1757999065786,0.3612204,115730.0,115720.0,0.85721107]
[1757999068082,0.00872828,115730.0,115720.0,0.86038107]
[1757999068314,0.3612204,115730.0,115720.0,0.86038107]
[1757999068554,0.35249212,115730.0,115720.0,0.85721107]
[1757999068802,0.36119041,115730.0,115720.0,0.86038107]
[1757999069234,0.00869829,115730.0,115720.0,0.86038107]
[1757999069459,0.36119041,115730.0,115720.0,0.86038107]
[1757999069683,0.35249212,115730.0,115720.0,0.86038107]
[1757999070091,0.35249212,115730.0,115720.0,0.85721107]
[1757999070941,0.35249212,115730.0,115720.0,0.71349107]
[1757999071180,0.35249212,115730.0,115720.0,0.85717107]
[1757999072495,0.35249212,115730.0,115720.0,0.86021107]
[1757999075011,0.36097801,115740.0,115730.0,0.19794261]
[1757999075219,0.36097801,115740.0,115730.0,0.49554613]
[1757999075434,0.36097801,115740.0,115730.0,0.52374613]
[1757999075630,0.36097801,115740.0,115730.0,0.92374613]
[1757999076454,0.35249212,115740.0,115730.0,0.92374613]
[1757999076690,0.3613404,115740.0,115730.0,0.78010613]
[1757999076864,0.3613404,115740.0,115730.0,0.77706613]
[1757999077190,0.71383252,115740.0,115730.0,0.92070613]
[1757999077688,0.71383252,115740.0,115730.0,0.77706613]
[1757999077912,0.71383252,115740.0,115730.0,0.92080613]
[1757999078099,0.74258252,115740.0,115730.0,0.75500613]
[1757999078523,0.74258252,115740.0,115730.0,0.89964613]
[1757999078729,0.74258252,115740.0,115730.0,0.92480613]
[1757999078956,0.74258252,115740.0,115730.0,0.92380613]
[1757999079402,0.74258252,115740.0,115730.0,0.92480613]
[1757999080676,0.74258252,115740.0,115730.0,0.78116613]
[1757999080886,0.74258252,115740.0,115730.0,0.92480613]
[1757999082339,0.74258252,115740.0,115730.0,0.89964613]
[1757999084052,0.74258252,115740.0,115730.0,0.92480613]
[1757999087535,0.74258252,115740.0,115730.0,0.89964613]
[1757999091894,0.03462828,115740.0,115730.0,0.89964613]
[1757999092136,0.74258252,115740.0,115730.0,0.89964613]
[1757999092381,0.74258252,115740.0,115730.0,0.92480613]
[1757999095912,0.03759828,115740.0,115730.0,0.92480613]
[1757999096170,0.71383252,115740.0,115730.0,0.92480613]
[1757999096424,0.02762082,115750.0,115740.0,0.19792768]
[1757999096601,0.03072082,115750.0,115740.0,0.4534512]
[1757999096816,0.05641082,115750.0,115740.0,0.4534512]
[1757999097011,0.05641082,115750.0,115740.0,0.8534512]
[1757999097228,0.05641082,115750.0,115740.0,0.8556612]
[1757999097437,0.40890294,115750.0,115740.0,0.8556612]
[1757999097648,0.35941129,115750.0,115740.0,0.8556612]
[1757999097868,0.35941129,115750.0,115740.0,0.8566612]
[1757999098128,0.38293129,115750.0,115740.0,0.8566612]
[1757999098549,0.38293129,115750.0,115740.0,0.8576612]
[1757999098765,0.38293129,115750.0,115740.0,0.8586612]
[1757999099208,0.03043917,115750.0,115740.0,0.8586612]
[1757999099420,0.35414129,115750.0,115740.0,0.8576612]
[1757999099658,0.36265003,115750.0,115740.0,0.8576612]
[1757999099869,0.36265003,115750.0,115740.0,0.8556612]
[1757999100084,0.36778003,115750.0,115740.0,0.8586612]
[1757999100298,0.39265003,115750.0,115740.0,0.8586612]
[1757999101299,0.39265003,115750.0,115740.0,0.8596612]
[1757999101657,0.39265003,115750.0,115740.0,0.8586612]
[1757999102104,0.39265003,115750.0,115740.0,0.8341912]
[1757999104028,0.36265003,115750.0,115740.0,0.8631512]
[1757999105937,0.01015791,115750.0,115740.0,0.8631512]
[1757999106143,0.00164917,115750.0,115740.0,0.8631512]
[1757999106350,0.36717546,115770.0,115760.0,0.19789783]
[1757999106590,0.36920546,115770.0,115760.0,0.49556135]
[1757999107265,0.36920546,115770.0,115760.0,0.89556135]
[1757999108433,0.37793504,115770.0,115760.0,0.89556135]
[1757999109632,0.37793504,115770.0,115760.0,0.75196135]
[1757999109900,0.37793504,115770.0,115760.0,0.89556135]
[1757999110110,0.37793504,115770.0,115760.0,0.89656135]
[1757999110739,0.37793504,115770.0,115760.0,0.75296135]
[1757999111050,0.37793504,115770.0,115760.0,0.89656135]
[1757999111536,0.35306504,115770.0,115760.0,0.90059135]
[1757999111756,0.34793504,115770.0,115760.0,0.92432135]
[1757999112198,0.3219655,115770.0,115760.0,0.92432135]
[1757999112422,0.3270955,115770.0,115760.0,0.92432135]
[1757999112643,0.3519655,115770.0,115760.0,0.92432135]
[1757999113579,0.3270955,115770.0,115760.0,0.92432135]
[1757999114046,0.3219655,115770.0,115760.0,0.92432135]
[1757999117526,0.3250655,115770.0,115760.0,0.92432135]
[1757999117747,0.3219655,115770.0,115760.0,0.92432135]
[1757999117970,0.00887958,115770.0,115760.0,0.92752135]
[1757999120480,0.3219655,115770.0,115760.0,0.92752135]
[1757999120839,0.3219655,115770.0,115760.0,0.78392135]
[1757999121046,0.3219655,115770.0,115760.0,0.92432135]
[1757999121495,0.00887958,115770.0,115760.0,0.92432135]
[1757999121716,0.3219655,115770.0,115760.0,0.92432135]
[1757999123793,0.01057758,115780.0,115770.0,0.17275632]
[1757999124027,0.3236635,115780.0,115770.0,0.42768984]
[1757999124238,0.3536635,115780.0,115770.0,0.42971984]
[1757999124477,0.3536635,115780.0,115770.0,0.82971984]
[1757999124678,0.3536635,115780.0,115770.0,0.82981984]
[1757999125611,0.3236635,115780.0,115770.0,0.82981984]
[1757999126050,0.3236635,115780.0,115770.0,0.83301984]
[1757999126470,0.3236635,115780.0,115770.0,0.83601984]
[1757999126675,0.33237774,115780.0,115770.0,0.83601984]
[1757999127289,0.01057758,115780.0,115770.0,0.83281984]
[1757999127538,0.00040603,115780.0,115770.0,0.86214642]
[1757999127753,0.00040603,115780.0,115770.0,0.88814543]
[1757999128099,0.00040603,115780.0,115770.0,0.88714543]
[1757999128323,0.00040603,115780.0,115770.0,0.88910543]
[1757999128866,0.00040603,115780.0,115770.0,0.88410543]
[1757999129042,0.00040603,115780.0,115770.0,1.22810543]
[1757999129253,0.00182703,115790.0,115780.0,0.19786798]
[1757999129647,0.00182703,115790.0,115780.0,0.3126015]
[1757999129869,0.00182703,115790.0,115780.0,0.4583215]
[1757999130139,0.00182703,115790.0,115780.0,0.34055734]
[1757999130346,0.00182703,115790.0,115780.0,0.88427734]
[1757999131418,0.00182703,115790.0,115780.0,0.88727734]
[1757999131835,0.00182703,115790.0,115780.0,0.89237734]
[1757999132261,0.00182703,115790.0,115780.0,0.74865734]
[1757999132702,0.00182703,115790.0,115780.0,0.89237734]
[1757999133803,1e-08,115790.0,115780.0,0.89237734]
[1757999134055,1e-08,115790.0,115780.0,1.28237734]
[1757999134274,0.0002,115810.0,115800.0,0.17271157]
[1757999134500,0.0002,115810.0,115800.0,0.35176167]
[1757999134726,0.0002,115810.0,115800.0,0.52477167]
[1757999134925,0.0002,115810.0,115800.0,0.38097167]
[1757999135175,0.0002,115810.0,115800.0,0.55072465]
[1757999135576,0.0002,115810.0,115800.0,0.55572465]
[1757999135784,0.0002,115810.0,115800.0,0.55582465]
[1757999136211,0.0002,115810.0,115800.0,0.81202465]
[1757999136475,0.0002,115810.0,115800.0,0.95282465]
[1757999136686,0.0002,115810.0,115800.0,0.95582465]
[1757999136904,0.0002,115810.0,115800.0,0.95382465]
[1757999137113,0.0002,115810.0,115800.0,0.95582465]
[1757999137561,0.0002,115810.0,115800.0,0.95382465]
[1757999137997,0.0002,115810.0,115800.0,0.95682465]
[1757999138212,0.0002,115810.0,115800.0,0.95382465]
[1757999138434,0.0002,115810.0,115800.0,0.95882465]
[1757999139097,0.004,115830.0,115820.0,0.17268174]
[1757999139312,0.00047886,115840.0,115830.0,0.17266683]
[1757999139527,0.00047886,115840.0,115830.0,0.69340341]
[1757999139741,0.00047886,115840.0,115830.0,0.83776341]
[1757999140368,0.00047886,115840.0,115830.0,0.78092693]
[1757999140581,0.31858478,115840.0,115830.0,0.77766224]
[1757999140791,0.34172478,115840.0,115830.0,0.92202224]
[1757999140997,0.34172478,115840.0,115830.0,0.77766224]
[1757999141228,0.34172478,115840.0,115830.0,0.92402224]
[1757999141426,0.34172478,115840.0,115830.0,0.94817224]
[1757999141635,0.34172478,115840.0,115830.0,0.80681224]
[1757999141834,0.34172478,115840.0,115830.0,0.95617224]
[1757999142945,0.34172478,115840.0,115830.0,0.95627224]
[1757999143154,0.31858478,115840.0,115830.0,0.95627224]
[1757999144720,0.00249886,115840.0,115830.0,0.95627224]
[1757999145163,0.31356478,115840.0,115830.0,0.95627224]
[1757999145408,0.00047886,115840.0,115830.0,0.95933224]
[1757999146021,0.00047886,115840.0,115830.0,1.00933224]
[1757999146236,0.00047886,115840.0,115830.0,1.34933224]
[1757999146872,0.00047886,115840.0,115830.0,1.20497224]
[1757999147075,0.00047886,115840.0,115830.0,1.34929224]
[1757999147301,0.00047886,115840.0,115830.0,1.20497224]
[1757999147515,0.00047886,115840.0,115830.0,1.34925224]
[1757999151914,0.00047886,115840.0,115830.0,1.39925224]
[1757999155922,0.0002,115850.0,115840.0,0.53777851]
[1757999156133,0.0002,115850.0,115840.0,0.78118203]
[1757999156338,0.0002,115850.0,115840.0,0.78328203]
[1757999156566,0.0002,115850.0,115840.0,1.18328203]
[1757999156981,0.0002,115850.0,115840.0,1.18338203]
[1757999157193,1e-08,115850.0,115840.0,1.18338203]
[1757999157411,0.02334,115870.0,115860.0,0.17262213]
[1757999157412,0.01475933,115870.0,115860.0,0.17262213]
[1757999157626,0.1,115880.0,115870.0,0.02512658]
[1757999157842,0.1,115880.0,115870.0,0.43473733]
[1757999158050,0.1,115880.0,115870.0,0.83473733]
[1757999158891,0.1,115880.0,115870.0,0.83973733]
[1757999159553,0.09078185,115880.0,115870.0,1.44567733]
[1757999159765,0.07042488,115880.0,115870.0,1.44567733]
[1757999159984,0.07042488,115880.0,115870.0,1.27737095]
[1757999160207,0.07042488,115880.0,115870.0,1.27523095]
[1757999160433,0.07042488,115880.0,115870.0,1.42245095]
[1757999162028,0.07042488,115880.0,115870.0,1.42255095]
[1757999162981,0.00044014,115890.0,115880.0,0.24771891]
[1757999163210,0.00044014,115890.0,115880.0,0.48286243]
[1757999163441,0.00044014,115890.0,115880.0,0.48498243]
[1757999163909,0.00044014,115890.0,115880.0,0.88498243]
[1757999164628,0.00044014,115890.0,115880.0,0.86091605]
[1757999164853,0.00044014,115890.0,115880.0,0.91087605]
[1757999166237,0.00011522,115900.0,115890.0,1.10922754]
[1757999166589,1e-08,115900.0,115890.0,1.10922754]
[1757999166827,1e-08,115900.0,115890.0,1.20922754]
[1757999167293,1e-08,115900.0,115890.0,1.64752754]
[1757999167533,1e-08,115900.0,115890.0,2.04752754]
[1757999167767,0.16707328,115970.0,115950.0,0.17248814]
[1757999168036,0.23660524,115970.0,115960.0,0.29864352]
[1757999168285,0.50903328,115970.0,115960.0,0.29864352]
[1757999168536,0.16903328,115970.0,115960.0,0.29864352]
[1757999168956,0.52896672,115970.0,115960.0,0.29864352]
[1757999169179,0.86896672,115970.0,115960.0,0.15388352]
[1757999169410,1.22003136,115970.0,115960.0,0.29860352]
[1757999169900,1.22308136,115970.0,115960.0,0.29870352]
[1757999170954,1.23660432,115970.0,115960.0,0.29870352]
[1757999172029,1.23660432,115970.0,115960.0,0.15398352]
[1757999172232,1.22308136,115970.0,115960.0,0.29866352]
[1757999172435,1.22308136,115970.0,115960.0,0.15398352]
[1757999172645,0.17247326,115960.0,115950.0,0.0001]
[1757999172865,1.2316966,115960.0,115950.0,0.23226352]
[1757999173082,1.2367066,115960.0,115950.0,0.23226352]
[1757999173316,1.2367066,115960.0,115920.0,0.06953196]
[1757999173317,0.18111254,115950.0,115920.0,0.06953196]
[1757999173532,1.21660717,115930.0,115920.0,0.13585196]
[1757999173740,1.04713928,115930.0,115920.0,0.45306474]
[1757999173964,0.5125038,115940.0,115920.0,0.54572826]
[1757999174195,0.5155538,115940.0,115930.0,0.27729319]
[1757999174404,0.00196,115940.0,115930.0,0.28728799]
[1757999174619,0.55810919,115950.0,115930.0,0.29030799]
[1757999174620,0.87522718,115950.0,115930.0,0.29030799]
[1757999174819,0.87522718,115950.0,115940.0,0.23224352]
[1757999175082,0.87718718,115950.0,115940.0,0.40474653]
[1757999175302,1.22825182,115950.0,115940.0,0.40474653]
[1757999175785,0.30676397,115950.0,115940.0,0.43199311]
[1757999176004,0.30480397,115950.0,115940.0,0.43501311]
[1757999176435,0.30676397,115950.0,115940.0,0.43199311]
[1757999176657,0.78710608,115950.0,115940.0,0.2573701]
[1757999176879,0.78710608,115950.0,115940.0,0.2583701]
[1757999177095,0.78710608,115950.0,115940.0,0.08852352]
[1757999177313,0.78710608,115950.0,115940.0,0.23324352]
[1757999177560,0.78710608,115950.0,115940.0,0.23524352]
[1757999177758,0.78710608,115950.0,115940.0,0.23320352]
[1757999178188,0.78710608,115950.0,115940.0,0.23620352]
[1757999178390,0.79313147,115950.0,115940.0,0.23320352]
[1757999178850,0.79313147,115950.0,115940.0,0.23430352]
[1757999179032,0.79313147,115950.0,115940.0,0.23230352]
[1757999179244,0.78710608,115950.0,115940.0,0.40480653]
[1757999179479,0.78710608,115950.0,115940.0,0.23230352]
[1757999179675,0.17749814,115950.0,115940.0,0.23230352]
[1757999179905,0.48330211,115950.0,115940.0,0.40480653]
[1757999180121,0.00296,115950.0,115940.0,0.43205311]
[1757999180342,0.001,115950.0,115940.0,0.43507311]
[1757999180567,0.30480397,115950.0,115940.0,0.43507311]
[1757999181023,0.30480397,115950.0,115940.0,0.43707311]
[1757999181240,0.78710608,115950.0,115940.0,0.08762352]
[1757999181505,0.78710608,115950.0,115940.0,0.23542352]
[1757999181731,0.78710608,115950.0,115940.0,0.40792653]
[1757999181938,0.78710608,115950.0,115940.0,0.23542352]
[1757999182376,0.78710608,115950.0,115940.0,0.40792653]
[1757999182589,0.17749814,115950.0,115940.0,0.40792653]
[1757999182810,0.30981397,115950.0,115940.0,0.40792653]
[1757999183010,0.48230211,115950.0,115940.0,0.40792653]
[1757999183230,0.30981397,115950.0,115940.0,0.40792653]
[1757999183459,0.30480397,115950.0,115940.0,0.41306653]
[1757999184377,0.48833846,115950.0,115940.0,0.23542352]
[1757999184809,0.79314243,115950.0,115940.0,0.40792653]
[1757999185479,0.31585032,115950.0,115940.0,0.40792653]
[1757999185683,0.31585032,115950.0,115940.0,0.41004653]
[1757999185684,0.31280032,115950.0,115940.0,0.41004653]
[1757999185883,0.31084032,115950.0,115940.0,0.43517311]
[1757999186093,0.34305,115960.0,115950.0,0.17248814]
[1757999186308,0.65585358,115960.0,115950.0,0.32845166]
[1757999186568,0.65280358,115960.0,115950.0,0.32845166]
[1757999187429,0.82527684,115960.0,115950.0,0.32845166]
[1757999187645,0.82832684,115960.0,115950.0,0.15584352]
[1757999187901,0.82832684,115960.0,115950.0,0.15594352]
[1757999188745,1.13313081,115960.0,115950.0,0.15594352]
[1757999188954,0.52352287,115960.0,115950.0,0.30106352]
[1757999189191,1.13313081,115960.0,115950.0,0.30106352]
[1757999189396,0.51748326,115960.0,115950.0,0.30106352]
[1757999189609,1.1270912,115960.0,115950.0,0.30106352]
[1757999190020,1.1280912,115960.0,115950.0,0.30106352]